[Event "Titled Tuesday Blitz August 24 2021"]
[White "Pavlov, Danila"]
[Black "Balakrishnan, Praveen"]
[WhiteFideId "34126594"]
[BlackFideId "2064871"]
[WhiteElo "2323"]
[BlackElo "2237"]
[Result "1-0"]
[Round "11"]
[TimeControl "180+1"]
[Date "2021.08.24"]
[WhiteClock "0:00:08"]
[BlackClock "0:00:05"]

1. e4 {[%clk 0:03:00]}  c6 {[%clk 0:02:59]} 2. Nc3 {[%clk 0:03:00]}  d5 {[%clk 0:03:00]} 3. Nf3 {[%clk 0:03:01]}  Bg4 {[%clk 0:02:59]} 4. h3 {[%clk 0:03:01]}  Bxf3 {[%clk 0:02:59]} 5. Qxf3 {[%clk 0:03:02]}  e6 {[%clk 0:02:59]} 6. d3 {[%clk 0:03:02]}  Nd7 {[%clk 0:02:56]} 7. Qg3 {[%clk 0:03:02]}  Ngf6 {[%clk 0:02:54]} 8. Be2 {[%clk 0:03:00]}  d4 {[%clk 0:02:51]} 9. Nb1 {[%clk 0:02:59]}  Bb4+ {[%clk 0:02:50]} 10. c3 {[%clk 0:02:56]}  dxc3 {[%clk 0:02:47]} 11. bxc3 {[%clk 0:02:56]}  Be7 {[%clk 0:02:43]} 12. O-O {[%clk 0:02:55]}  O-O {[%clk 0:02:38]} 13. Be3 {[%clk 0:02:53]}  Nb6 {[%clk 0:02:30]} 14. f4 {[%clk 0:02:49]}  Qd7 {[%clk 0:02:28]} 15. Nd2 {[%clk 0:02:46]}  c5 {[%clk 0:02:28]} 16. Nf3 {[%clk 0:02:44]}  Rfd8 {[%clk 0:02:25]} 17. f5 {[%clk 0:02:33]}  exf5 {[%clk 0:02:23]} 18. Ne5 {[%clk 0:02:32]}  Qb5 {[%clk 0:02:22]} 19. Rxf5 {[%clk 0:02:06]}  Qb2 {[%clk 0:02:16]} 20. Qe1 {[%clk 0:02:00]}  Na4 {[%clk 0:02:07]} 21. Bd2 {[%clk 0:01:29]}  Qb6 {[%clk 0:02:02]} 22. Rb1 {[%clk 0:01:19]}  Qc7 {[%clk 0:01:52]} 23. Qf2 {[%clk 0:01:15]}  Bd6 {[%clk 0:01:41]} 24. Nc4 {[%clk 0:01:15]}  Bf8 {[%clk 0:01:03]} 25. Ne3 {[%clk 0:01:11]}  Nb6 {[%clk 0:01:00]} 26. Rxf6 {[%clk 0:01:08]}  gxf6 {[%clk 0:00:59]} 27. Nf5 {[%clk 0:00:58]}  Kh8 {[%clk 0:00:56]} 28. Qh4 {[%clk 0:00:56]}  Qc6 {[%clk 0:00:54]} 29. Rf1 {[%clk 0:00:39]}  Nd7 {[%clk 0:00:54]} 30. Bh6 {[%clk 0:00:33]}  Qe6 {[%clk 0:00:46]} 31. Rf4 {[%clk 0:00:31]}  Qe8 {[%clk 0:00:22]} 32. Rg4 {[%clk 0:00:16]}  Bxh6 {[%clk 0:00:16]} 33. Qxh6 {[%clk 0:00:16]}  Qf8 {[%clk 0:00:16]} 34. Rg7 {[%clk 0:00:16]}  Qg8 {[%clk 0:00:17]} 35. Bh5 {[%clk 0:00:12]}  Rf8 {[%clk 0:00:15]} 36. Rxg8+ {[%clk 0:00:12]}  Rxg8 {[%clk 0:00:16]} 37. Bxf7 {[%clk 0:00:12]}  Rg5 {[%clk 0:00:15]} 38. h4 {[%clk 0:00:10]}  Rg4 {[%clk 0:00:15]} 39. Ne3 {[%clk 0:00:09]}  Rg3 {[%clk 0:00:14]} 40. Qf4 {[%clk 0:00:09]}  Rg7 {[%clk 0:00:14]} 41. Be6 {[%clk 0:00:09]}  Ne5 {[%clk 0:00:14]} 42. Qxf6 {[%clk 0:00:08]}  Nxd3 {[%clk 0:00:05]} 43. Nf5 {[%clk 0:00:08]} 1-0


[Site "https://www.chess.com"]

[Event "Titled Tuesday Blitz August 24 2021"]
[White "Pires, Marcos Vinicius Torsani"]
[Black "Machidon, Cristi"]
[WhiteFideId "2118939"]
[BlackFideId "13904590"]
[WhiteElo "2273"]
[BlackElo "2312"]
[Result "0-1"]
[Round "11"]
[TimeControl "180+1"]
[Date "2021.08.24"]
[WhiteClock "0:00:07"]
[BlackClock "0:00:19"]

1. e4 {[%clk 0:03:00]}  c5 {[%clk 0:02:59]} 2. c3 {[%clk 0:02:58]}  Nf6 {[%clk 0:02:58]} 3. e5 {[%clk 0:02:59]}  Nd5 {[%clk 0:02:58]} 4. d4 {[%clk 0:02:59]}  cxd4 {[%clk 0:02:59]} 5. cxd4 {[%clk 0:03:00]}  d6 {[%clk 0:02:59]} 6. Nf3 {[%clk 0:03:00]}  Nc6 {[%clk 0:02:58]} 7. Bc4 {[%clk 0:03:00]}  e6 {[%clk 0:02:58]} 8. O-O {[%clk 0:03:00]}  dxe5 {[%clk 0:02:58]} 9. dxe5 {[%clk 0:03:00]}  Be7 {[%clk 0:02:56]} 10. a3 {[%clk 0:02:59]}  O-O {[%clk 0:02:54]} 11. Qe2 {[%clk 0:03:00]}  Qb6 {[%clk 0:02:24]} 12. Qe4 {[%clk 0:02:55]}  Rd8 {[%clk 0:02:16]} 13. Bd3 {[%clk 0:02:46]}  g6 {[%clk 0:02:16]} 14. Bh6 {[%clk 0:02:39]}  Qxb2 {[%clk 0:02:13]} 15. Nbd2 {[%clk 0:02:33]}  Nc3 {[%clk 0:01:49]} 16. Qe3 {[%clk 0:02:18]}  b6 {[%clk 0:01:49]} 17. Nc4 {[%clk 0:01:58]}  Qb5 {[%clk 0:01:48]} 18. Nd6 {[%clk 0:01:52]}  Qc5 {[%clk 0:01:34]} 19. Qxc5 {[%clk 0:01:30]}  bxc5 {[%clk 0:01:35]} 20. Ne4 {[%clk 0:01:26]}  Rxd3 {[%clk 0:01:33]} 21. Nf6+ {[%clk 0:00:37]}  Bxf6 {[%clk 0:01:28]} 22. exf6 {[%clk 0:00:38]}  Ba6 {[%clk 0:01:23]} 23. Rfe1 {[%clk 0:00:34]}  Rb8 {[%clk 0:01:14]} 24. h3 {[%clk 0:00:29]}  Nd5 {[%clk 0:00:59]} 25. Bg7 {[%clk 0:00:18]}  c4 {[%clk 0:00:49]} 26. Ng5 {[%clk 0:00:18]}  Nd4 {[%clk 0:00:34]} 27. Rab1 {[%clk 0:00:14]}  Rbb3 {[%clk 0:00:30]} 28. Ne4 {[%clk 0:00:10]}  Bb5 {[%clk 0:00:27]} 29. Nc5 {[%clk 0:00:08]}  Rxb1 {[%clk 0:00:20]} 30. Rxb1 {[%clk 0:00:07]}  Rxa3 {[%clk 0:00:19]} 0-1


[Site "https://www.chess.com"]

[Event "Titled Tuesday Blitz August 24 2021"]
[White "Prraneeth Vuppala"]
[Black "Martin Carmona, Gaston Manuel"]
[WhiteFideId "46622373"]
[BlackFideId "22284567"]
[WhiteElo "1759"]
[BlackElo "2161"]
[Result "0-1"]
[Round "11"]
[TimeControl "180+1"]
[Date "2021.08.24"]
[WhiteClock "0:00:39"]
[BlackClock "0:01:20"]

1. e4 {[%clk 0:03:00]}  c5 {[%clk 0:02:59]} 2. Nf3 {[%clk 0:03:01]}  d6 {[%clk 0:03:00]} 3. d4 {[%clk 0:03:01]}  cxd4 {[%clk 0:03:01]} 4. Nxd4 {[%clk 0:03:02]}  Nf6 {[%clk 0:03:01]} 5. Nc3 {[%clk 0:03:03]}  g6 {[%clk 0:03:02]} 6. Be3 {[%clk 0:03:02]}  Bg7 {[%clk 0:03:02]} 7. f3 {[%clk 0:03:02]}  Nc6 {[%clk 0:03:02]} 8. Qd2 {[%clk 0:03:02]}  O-O {[%clk 0:03:02]} 9. O-O-O {[%clk 0:03:02]}  d5 {[%clk 0:03:00]} 10. Qe1 {[%clk 0:03:03]}  e5 {[%clk 0:02:58]} 11. Nxc6 {[%clk 0:03:03]}  bxc6 {[%clk 0:02:59]} 12. exd5 {[%clk 0:03:03]}  Nxd5 {[%clk 0:03:00]} 13. Bc4 {[%clk 0:03:03]}  Be6 {[%clk 0:02:56]} 14. Kb1 {[%clk 0:02:59]}  Re8 {[%clk 0:02:53]} 15. h4 {[%clk 0:02:57]}  h6 {[%clk 0:02:03]} 16. Ne4 {[%clk 0:02:18]}  f5 {[%clk 0:02:03]} 17. Nc5 {[%clk 0:02:13]}  Bf7 {[%clk 0:02:02]} 18. Qd2 {[%clk 0:01:58]}  Qb6 {[%clk 0:01:52]} 19. Bxd5 {[%clk 0:01:38]}  cxd5 {[%clk 0:01:43]} 20. Nb3 {[%clk 0:01:33]}  d4 {[%clk 0:01:42]} 21. Bxh6 {[%clk 0:01:33]}  a5 {[%clk 0:01:40]} 22. Bxg7 {[%clk 0:01:32]}  Kxg7 {[%clk 0:01:41]} 23. g4 {[%clk 0:01:04]}  Reb8 {[%clk 0:01:34]} 24. gxf5 {[%clk 0:00:58]}  a4 {[%clk 0:01:33]} 25. fxg6 {[%clk 0:00:58]}  axb3 {[%clk 0:01:24]} 26. cxb3 {[%clk 0:00:55]}  Bxg6+ {[%clk 0:01:22]} 27. Ka1 {[%clk 0:00:40]}  Rxa2+ {[%clk 0:01:22]} 28. Kxa2 {[%clk 0:00:39]}  Ra8+ {[%clk 0:01:20]} 0-1


[Site "https://www.chess.com"]

[Event "Titled Tuesday Blitz August 24 2021"]
[White "Quintiliano Pinto, Renato R."]
[Black "Grachev, Boris"]
[WhiteFideId "2117568"]
[BlackFideId "4129199"]
[WhiteElo "2439"]
[BlackElo "2580"]
[Result "0-1"]
[Round "11"]
[TimeControl "180+1"]
[Date "2021.08.24"]
[WhiteClock "0:00:04"]
[BlackClock "0:01:04"]

1. d4 {[%clk 0:03:00]}  Nf6 {[%clk 0:02:59]} 2. c4 {[%clk 0:03:00]}  b6 {[%clk 0:02:59]} 3. Nf3 {[%clk 0:02:57]}  Bb7 {[%clk 0:02:59]} 4. a3 {[%clk 0:02:57]}  g6 {[%clk 0:02:59]} 5. g3 {[%clk 0:02:56]}  Bg7 {[%clk 0:02:59]} 6. Bg2 {[%clk 0:02:57]}  O-O {[%clk 0:02:59]} 7. O-O {[%clk 0:02:57]}  c5 {[%clk 0:02:57]} 8. d5 {[%clk 0:02:56]}  b5 {[%clk 0:02:57]} 9. Nc3 {[%clk 0:02:54]}  b4 {[%clk 0:02:42]} 10. axb4 {[%clk 0:02:44]}  cxb4 {[%clk 0:02:43]} 11. Nb5 {[%clk 0:02:44]}  a5 {[%clk 0:02:36]} 12. Re1 {[%clk 0:02:28]}  d6 {[%clk 0:02:35]} 13. Nfd4 {[%clk 0:02:15]}  Qc8 {[%clk 0:02:26]} 14. b3 {[%clk 0:02:05]}  Nfd7 {[%clk 0:02:24]} 15. Bg5 {[%clk 0:02:02]}  Re8 {[%clk 0:02:23]} 16. Bxe7 {[%clk 0:01:43]}  Rxe7 {[%clk 0:02:21]} 17. Nxd6 {[%clk 0:01:43]}  Qc5 {[%clk 0:02:21]} 18. Nxb7 {[%clk 0:01:38]}  Qxd4 {[%clk 0:02:20]} 19. d6 {[%clk 0:01:11]}  Re8 {[%clk 0:02:20]} 20. Qxd4 {[%clk 0:00:33]}  Bxd4 {[%clk 0:02:20]} 21. Ra2 {[%clk 0:00:32]}  a4 {[%clk 0:02:10]} 22. bxa4 {[%clk 0:00:26]}  b3 {[%clk 0:02:08]} 23. Ra3 {[%clk 0:00:26]}  b2 {[%clk 0:01:59]} 24. e3 {[%clk 0:00:25]}  Ra6 {[%clk 0:01:34]} 25. Rb1 {[%clk 0:00:20]}  Bf6 {[%clk 0:01:27]} 26. c5 {[%clk 0:00:20]}  Rc8 {[%clk 0:01:22]} 27. Rb3 {[%clk 0:00:16]}  Rxa4 {[%clk 0:01:19]} 28. h4 {[%clk 0:00:12]}  Ra1 {[%clk 0:01:09]} 29. Be4 {[%clk 0:00:11]}  Rxb1+ {[%clk 0:01:06]} 30. Bxb1 {[%clk 0:00:12]}  Na6 {[%clk 0:01:06]} 31. Rb5 {[%clk 0:00:04]}  Naxc5 {[%clk 0:01:04]} 0-1


[Site "https://www.chess.com"]

[Event "Titled Tuesday Blitz August 24 2021"]
[White "Rodrigues, Tiago Pereira"]
[Black "Tomaszewski, Kacper"]
[WhiteFideId "2101203"]
[BlackFideId "1127373"]
[WhiteElo "2190"]
[BlackElo "2153"]
[Result "1-0"]
[Round "11"]
[TimeControl "180+1"]
[Date "2021.08.24"]
[WhiteClock "0:00:09"]
[BlackClock "0:00:09"]

1. d4 {[%clk 0:03:00]}  d5 {[%clk 0:02:59]} 2. c4 {[%clk 0:02:58]}  e6 {[%clk 0:02:59]} 3. Nc3 {[%clk 0:02:57]}  c6 {[%clk 0:02:59]} 4. e3 {[%clk 0:02:56]}  Nf6 {[%clk 0:02:57]} 5. Bd3 {[%clk 0:02:55]}  Nbd7 {[%clk 0:02:56]} 6. f4 {[%clk 0:02:55]}  Be7 {[%clk 0:02:51]} 7. Nf3 {[%clk 0:02:53]}  b6 {[%clk 0:02:50]} 8. Bd2 {[%clk 0:02:52]}  Bb7 {[%clk 0:02:49]} 9. cxd5 {[%clk 0:02:50]}  Nxd5 {[%clk 0:02:45]} 10. Nxd5 {[%clk 0:02:46]}  exd5 {[%clk 0:02:42]} 11. Qc2 {[%clk 0:02:45]}  Nf6 {[%clk 0:02:39]} 12. Ne5 {[%clk 0:02:45]}  Rc8 {[%clk 0:02:36]} 13. Bf5 {[%clk 0:02:34]}  Rc7 {[%clk 0:02:34]} 14. O-O {[%clk 0:02:34]}  g6 {[%clk 0:02:31]} 15. Bd3 {[%clk 0:02:33]}  Bd6 {[%clk 0:02:24]} 16. Be1 {[%clk 0:02:27]}  c5 {[%clk 0:02:16]} 17. Bb5+ {[%clk 0:02:27]}  Kf8 {[%clk 0:02:15]} 18. Qd1 {[%clk 0:02:03]}  a6 {[%clk 0:02:10]} 19. Bd3 {[%clk 0:02:02]}  c4 {[%clk 0:02:09]} 20. Bc2 {[%clk 0:02:02]}  Ne4 {[%clk 0:02:08]} 21. f5 {[%clk 0:01:57]}  Qg5 {[%clk 0:01:56]} 22. h4 {[%clk 0:01:47]}  Qxe3+ {[%clk 0:01:55]} 23. Kh1 {[%clk 0:01:42]}  Bxe5 {[%clk 0:01:53]} 24. dxe5 {[%clk 0:01:41]}  d4 {[%clk 0:01:51]} 25. Rf3 {[%clk 0:01:33]}  Nc3 {[%clk 0:01:09]} 26. Bxc3 {[%clk 0:00:51]}  Bxf3 {[%clk 0:01:06]} 27. Qxd4 {[%clk 0:00:51]}  Qxd4 {[%clk 0:00:56]} 28. Bxd4 {[%clk 0:00:51]}  Bd5 {[%clk 0:00:51]} 29. Bxb6 {[%clk 0:00:49]}  Rc6 {[%clk 0:00:49]} 30. Bd4 {[%clk 0:00:46]}  gxf5 {[%clk 0:00:48]} 31. Bxf5 {[%clk 0:00:45]}  Be6 {[%clk 0:00:48]} 32. Be4 {[%clk 0:00:45]}  Rc7 {[%clk 0:00:46]} 33. Rf1 {[%clk 0:00:41]}  Kg7 {[%clk 0:00:42]} 34. Rf3 {[%clk 0:00:38]}  Rg8 {[%clk 0:00:33]} 35. Bc3 {[%clk 0:00:35]}  Kh8 {[%clk 0:00:32]} 36. Bf5 {[%clk 0:00:10]}  Rd7 {[%clk 0:00:21]} 37. Kh2 {[%clk 0:00:08]}  h6 {[%clk 0:00:15]} 38. a3 {[%clk 0:00:08]}  Rg7 {[%clk 0:00:11]} 39. Kh3 {[%clk 0:00:04]}  Bxf5+ {[%clk 0:00:10]} 40. Rxf5 {[%clk 0:00:04]}  Rd3+ {[%clk 0:00:11]} 41. Kh2 {[%clk 0:00:05]}  Kh7 {[%clk 0:00:10]} 42. Rf6 {[%clk 0:00:03]}  Rdg3 {[%clk 0:00:09]} 43. Rf2 {[%clk 0:00:03]}  R7g4 {[%clk 0:00:08]} 44. Rxf7+ {[%clk 0:00:03]}  Kg8 {[%clk 0:00:08]} 45. Rf3 {[%clk 0:00:03]}  h5 {[%clk 0:00:07]} 46. Rxg3 {[%clk 0:00:03]}  Kf7 {[%clk 0:00:06]} 47. Rxg4 {[%clk 0:00:03]}  hxg4 {[%clk 0:00:07]} 48. Kg3 {[%clk 0:00:04]}  Ke6 {[%clk 0:00:07]} 49. Kxg4 {[%clk 0:00:05]}  Kd5 {[%clk 0:00:08]} 50. h5 {[%clk 0:00:06]}  Ke6 {[%clk 0:00:07]} 51. h6 {[%clk 0:00:07]}  Kf7 {[%clk 0:00:08]} 52. Kf5 {[%clk 0:00:07]}  a5 {[%clk 0:00:08]} 53. g4 {[%clk 0:00:08]}  a4 {[%clk 0:00:08]} 54. g5 {[%clk 0:00:09]}  Kg8 {[%clk 0:00:08]} 55. Bd4 {[%clk 0:00:09]}  c3 {[%clk 0:00:08]} 56. Bxc3 {[%clk 0:00:09]}  Kh7 {[%clk 0:00:08]} 57. Bd2 {[%clk 0:00:08]}  Kg8 {[%clk 0:00:08]} 58. g6 {[%clk 0:00:09]}  Kh8 {[%clk 0:00:09]} 59. Bb4 {[%clk 0:00:09]}  Kg8 {[%clk 0:00:09]} 60. e6 {[%clk 0:00:09]}  Kh8 {[%clk 0:00:09]} 61. e7 {[%clk 0:00:09]} 1-0


[Site "https://www.chess.com"]

[Event "Titled Tuesday Blitz August 24 2021"]
[White "Rodriguez, Santiago"]
[Black "Koziol, Kamil"]
[WhiteFideId "3000591"]
[BlackFideId "1161555"]
[WhiteElo "2256"]
[BlackElo "2025"]
[Result "1-0"]
[Round "11"]
[TimeControl "180+1"]
[Date "2021.08.24"]
[WhiteClock "0:02:16"]
[BlackClock "0:01:00"]

1. d4 {[%clk 0:03:00]}  Nf6 {[%clk 0:02:50]} 2. Bg5 {[%clk 0:03:00]}  Ne4 {[%clk 0:02:50]} 3. Bf4 {[%clk 0:03:00]}  d5 {[%clk 0:02:49]} 4. e3 {[%clk 0:03:01]}  c5 {[%clk 0:02:48]} 5. Bd3 {[%clk 0:03:00]}  Nc6 {[%clk 0:02:44]} 6. Bxe4 {[%clk 0:03:01]}  dxe4 {[%clk 0:02:42]} 7. d5 {[%clk 0:03:01]}  Nb4 {[%clk 0:02:37]} 8. Nc3 {[%clk 0:03:01]}  Bf5 {[%clk 0:02:34]} 9. g4 {[%clk 0:03:00]}  Bg6 {[%clk 0:02:34]} 10. a3 {[%clk 0:03:00]}  Na6 {[%clk 0:02:29]} 11. Nge2 {[%clk 0:02:59]}  Qd7 {[%clk 0:02:22]} 12. Ng3 {[%clk 0:02:59]}  e6 {[%clk 0:02:16]} 13. h4 {[%clk 0:02:46]}  h6 {[%clk 0:02:06]} 14. h5 {[%clk 0:02:46]}  Bh7 {[%clk 0:02:06]} 15. d6 {[%clk 0:02:41]}  Rd8 {[%clk 0:02:01]} 16. Ngxe4 {[%clk 0:02:35]}  Qc6 {[%clk 0:01:46]} 17. Qf3 {[%clk 0:02:29]}  f6 {[%clk 0:01:18]} 18. O-O-O {[%clk 0:02:22]}  e5 {[%clk 0:01:10]} 19. Bg3 {[%clk 0:02:18]}  b5 {[%clk 0:01:00]} 20. Nxf6+ {[%clk 0:02:16]} 1-0


[Site "https://www.chess.com"]

[Event "Titled Tuesday Blitz August 24 2021"]
[White "Ronka, Erik"]
[Black "Dang, Hoang Son"]
[WhiteFideId "505080"]
[BlackFideId "12402435"]
[WhiteElo "2264"]
[BlackElo "2248"]
[Result "0-1"]
[Round "11"]
[TimeControl "180+1"]
[Date "2021.08.24"]
[WhiteClock "0:00:04"]
[BlackClock "0:00:49"]

1. d4 {[%clk 0:03:00]}  Nf6 {[%clk 0:03:00]} 2. c4 {[%clk 0:03:01]}  c5 {[%clk 0:03:00]} 3. d5 {[%clk 0:03:01]}  b5 {[%clk 0:03:00]} 4. cxb5 {[%clk 0:03:02]}  a6 {[%clk 0:03:01]} 5. f3 {[%clk 0:03:02]}  e6 {[%clk 0:03:00]} 6. e4 {[%clk 0:03:03]}  axb5 {[%clk 0:02:59]} 7. Bxb5 {[%clk 0:02:59]}  Ba6 {[%clk 0:02:53]} 8. Bxa6 {[%clk 0:02:58]}  Rxa6 {[%clk 0:02:53]} 9. Nc3 {[%clk 0:02:57]}  Bd6 {[%clk 0:02:52]} 10. Nge2 {[%clk 0:02:41]}  O-O {[%clk 0:02:51]} 11. O-O {[%clk 0:02:34]}  exd5 {[%clk 0:02:49]} 12. Nxd5 {[%clk 0:02:29]}  Nxd5 {[%clk 0:02:49]} 13. Qxd5 {[%clk 0:02:30]}  Qc7 {[%clk 0:02:42]} 14. g3 {[%clk 0:02:20]}  Nc6 {[%clk 0:02:41]} 15. Rd1 {[%clk 0:02:13]}  Nd4 {[%clk 0:02:37]} 16. Nxd4 {[%clk 0:01:58]}  cxd4 {[%clk 0:02:38]} 17. Kg2 {[%clk 0:01:52]}  Bc5 {[%clk 0:02:20]} 18. Bd2 {[%clk 0:01:45]}  Rb8 {[%clk 0:02:02]} 19. Rab1 {[%clk 0:01:06]}  Rc6 {[%clk 0:01:51]} 20. b4 {[%clk 0:00:47]}  Bb6 {[%clk 0:01:47]} 21. Rdc1 {[%clk 0:00:41]}  Rc2 {[%clk 0:01:46]} 22. Kh3 {[%clk 0:00:32]}  d6 {[%clk 0:01:47]} 23. Bf4 {[%clk 0:00:29]}  Qd7+ {[%clk 0:01:39]} 24. g4 {[%clk 0:00:28]}  Rc3 {[%clk 0:01:36]} 25. Rxc3 {[%clk 0:00:23]}  dxc3 {[%clk 0:01:37]} 26. Qxd6 {[%clk 0:00:23]}  Qxd6 {[%clk 0:01:37]} 27. Bxd6 {[%clk 0:00:24]}  Ra8 {[%clk 0:01:34]} 28. Rc1 {[%clk 0:00:23]}  Bd4 {[%clk 0:01:30]} 29. Rc2 {[%clk 0:00:22]}  f6 {[%clk 0:01:21]} 30. Bc5 {[%clk 0:00:22]}  Be5 {[%clk 0:01:20]} 31. Be3 {[%clk 0:00:22]}  g5 {[%clk 0:01:19]} 32. b5 {[%clk 0:00:18]}  Ra4 {[%clk 0:01:19]} 33. b6 {[%clk 0:00:18]}  Rb4 {[%clk 0:01:20]} 34. Bc1 {[%clk 0:00:14]}  Rxb6 {[%clk 0:01:18]} 35. Kg2 {[%clk 0:00:13]}  Kf7 {[%clk 0:01:16]} 36. h4 {[%clk 0:00:10]}  Rb2 {[%clk 0:01:13]} 37. Rf2 {[%clk 0:00:07]}  Rb1 {[%clk 0:01:05]} 38. Be3 {[%clk 0:00:06]}  gxh4 {[%clk 0:01:05]} 39. f4 {[%clk 0:00:06]}  Bc7 {[%clk 0:01:01]} 40. Kf3 {[%clk 0:00:07]}  Rb2 {[%clk 0:00:58]} 41. Bd4 {[%clk 0:00:05]}  Rxf2+ {[%clk 0:00:50]} 42. Kxf2 {[%clk 0:00:06]}  c2 {[%clk 0:00:49]} 43. Be3 {[%clk 0:00:04]}  Bb6 {[%clk 0:00:49]} 0-1


[Site "https://www.chess.com"]

[Event "Titled Tuesday Blitz August 24 2021"]
[White "Senft, Sean"]
[Black "Obolentseva, Alexandra"]
[WhiteFideId "2044960"]
[BlackFideId "24153648"]
[WhiteElo "1881"]
[BlackElo "2113"]
[Result "0-1"]
[Round "11"]
[TimeControl "180+1"]
[Date "2021.08.24"]
[WhiteClock "0:00:02"]
[BlackClock "0:00:18"]

1. d4 {[%clk 0:03:00]}  Nf6 {[%clk 0:02:58]} 2. Bf4 {[%clk 0:02:59]}  d6 {[%clk 0:02:55]} 3. c4 {[%clk 0:02:54]}  g6 {[%clk 0:02:54]} 4. Nc3 {[%clk 0:02:54]}  Bg7 {[%clk 0:02:54]} 5. e3 {[%clk 0:02:55]}  c6 {[%clk 0:02:52]} 6. Nf3 {[%clk 0:02:50]}  Nbd7 {[%clk 0:02:52]} 7. Be2 {[%clk 0:02:47]}  O-O {[%clk 0:02:50]} 8. O-O {[%clk 0:02:47]}  a6 {[%clk 0:02:48]} 9. a4 {[%clk 0:02:46]}  b6 {[%clk 0:02:47]} 10. b4 {[%clk 0:02:38]}  Nh5 {[%clk 0:02:41]} 11. Bg3 {[%clk 0:02:37]}  Nxg3 {[%clk 0:02:40]} 12. hxg3 {[%clk 0:02:37]}  Nf6 {[%clk 0:02:39]} 13. Rc1 {[%clk 0:02:26]}  Bd7 {[%clk 0:02:37]} 14. c5 {[%clk 0:02:22]}  bxc5 {[%clk 0:02:35]} 15. bxc5 {[%clk 0:02:20]}  dxc5 {[%clk 0:02:35]} 16. dxc5 {[%clk 0:02:19]}  Be6 {[%clk 0:02:35]} 17. Nd4 {[%clk 0:02:17]}  Bd7 {[%clk 0:02:32]} 18. Bf3 {[%clk 0:02:17]}  Qc7 {[%clk 0:02:30]} 19. Rb1 {[%clk 0:02:10]}  Rfd8 {[%clk 0:02:28]} 20. Qe2 {[%clk 0:02:10]}  e5 {[%clk 0:02:20]} 21. Nc2 {[%clk 0:02:03]}  Qa5 {[%clk 0:02:10]} 22. Ne4 {[%clk 0:01:51]}  Nxe4 {[%clk 0:02:09]} 23. Bxe4 {[%clk 0:01:52]}  Qxa4 {[%clk 0:02:09]} 24. Rb6 {[%clk 0:01:37]}  Qxe4 {[%clk 0:02:05]} 25. Rd1 {[%clk 0:01:26]}  Bf5 {[%clk 0:02:00]} 26. Rxd8+ {[%clk 0:01:24]}  Rxd8 {[%clk 0:02:01]} 27. Nb4 {[%clk 0:01:24]}  Bd7 {[%clk 0:01:29]} 28. Qxa6 {[%clk 0:01:17]}  h5 {[%clk 0:01:24]} 29. Qa7 {[%clk 0:01:13]}  h4 {[%clk 0:01:16]} 30. Qc7 {[%clk 0:01:11]}  Bf6 {[%clk 0:01:10]} 31. gxh4 {[%clk 0:01:11]}  Qxh4 {[%clk 0:01:05]} 32. Rb7 {[%clk 0:01:01]}  Qc4 {[%clk 0:00:45]} 33. Qd6 {[%clk 0:00:48]}  Qe6 {[%clk 0:00:42]} 34. Qc7 {[%clk 0:00:36]}  e4 {[%clk 0:00:41]} 35. Nc2 {[%clk 0:00:23]}  Qc4 {[%clk 0:00:35]} 36. Qd6 {[%clk 0:00:14]}  Be6 {[%clk 0:00:28]} 37. Qf4 {[%clk 0:00:09]}  Bg7 {[%clk 0:00:18]} 38. Nb4 {[%clk 0:00:04]}  Qxc5 {[%clk 0:00:18]} 39. Qg3 {[%clk 0:00:01]}  Rd1+ {[%clk 0:00:18]} 40. Kh2 {[%clk 0:00:01]}  Be5 {[%clk 0:00:18]} 41. f4 {[%clk 0:00:02]}  exf3 {[%clk 0:00:18]} 0-1


[Site "https://www.chess.com"]

[Event "Titled Tuesday Blitz August 24 2021"]
[White "Shuvalova, Polina"]
[Black "Ivanisevic, Ivan"]
[WhiteFideId "24171760"]
[BlackFideId "912417"]
[WhiteElo "2299"]
[BlackElo "2499"]
[Result "0-1"]
[Round "11"]
[TimeControl "180+1"]
[Date "2021.08.24"]
[WhiteClock "0:00:21"]
[BlackClock "0:00:25"]

1. d4 {[%clk 0:03:00]}  Nf6 {[%clk 0:02:57]} 2. Nf3 {[%clk 0:03:01]}  c5 {[%clk 0:02:55]} 3. d5 {[%clk 0:02:59]}  d6 {[%clk 0:02:53]} 4. c4 {[%clk 0:02:59]}  g6 {[%clk 0:02:45]} 5. Nc3 {[%clk 0:02:59]}  Bg7 {[%clk 0:02:45]} 6. e4 {[%clk 0:02:59]}  O-O {[%clk 0:02:43]} 7. Be2 {[%clk 0:02:59]}  e6 {[%clk 0:02:42]} 8. O-O {[%clk 0:02:58]}  Re8 {[%clk 0:02:42]} 9. h3 {[%clk 0:02:46]}  exd5 {[%clk 0:02:39]} 10. exd5 {[%clk 0:02:46]}  Bf5 {[%clk 0:02:39]} 11. Bf4 {[%clk 0:02:45]}  Ne4 {[%clk 0:02:32]} 12. Nxe4 {[%clk 0:02:41]}  Bxe4 {[%clk 0:02:28]} 13. Qd2 {[%clk 0:02:40]}  Qb6 {[%clk 0:02:18]} 14. Ng5 {[%clk 0:02:17]}  Bf5 {[%clk 0:01:59]} 15. g4 {[%clk 0:02:16]}  Qxb2 {[%clk 0:01:51]} 16. Qxb2 {[%clk 0:01:46]}  Bxb2 {[%clk 0:01:52]} 17. Rae1 {[%clk 0:01:46]}  Bc2 {[%clk 0:01:19]} 18. Bf3 {[%clk 0:01:24]}  Nd7 {[%clk 0:01:15]} 19. Bxd6 {[%clk 0:01:19]}  Bd3 {[%clk 0:01:06]} 20. Rxe8+ {[%clk 0:01:01]}  Rxe8 {[%clk 0:01:07]} 21. Rd1 {[%clk 0:01:00]}  Bxc4 {[%clk 0:01:03]} 22. Ne4 {[%clk 0:00:54]}  b6 {[%clk 0:00:55]} 23. g5 {[%clk 0:00:50]}  Bd4 {[%clk 0:00:50]} 24. a3 {[%clk 0:00:46]}  Bxd5 {[%clk 0:00:49]} 25. Nd2 {[%clk 0:00:33]}  Be6 {[%clk 0:00:29]} 26. Bc6 {[%clk 0:00:33]}  Rc8 {[%clk 0:00:28]} 27. Bb7 {[%clk 0:00:33]}  Rd8 {[%clk 0:00:27]} 28. Bc6 {[%clk 0:00:32]}  Ne5 {[%clk 0:00:26]} 29. Be7 {[%clk 0:00:23]}  Nxc6 {[%clk 0:00:24]} 30. Bxd8 {[%clk 0:00:23]}  Nxd8 {[%clk 0:00:25]} 31. Nf3 {[%clk 0:00:21]}  Nc6 {[%clk 0:00:25]} 0-1


[Site "https://www.chess.com"]